fUST/lending_fUST_20250628
["ID","MTS","AMOUNT","RATE_DAILY","PERIOD"]
[368291890,1751095843619,-460.0,0.00019452,2]
[368291891,1751095843629,-460.0,0.00019452,2]
[368291892,1751095843638,-460.0,0.00019452,2]
[368291893,1751095843650,-400.81107327,0.00019452,2]
[368291894,1751095843659,-519.7,0.00019452,2]
[368291895,1751095843669,-460.0,0.00019452,2]
[368291896,1751095843678,-460.0,0.00019452,2]
[368291897,1751095843688,-460.0,0.00019452,2]
[368291898,1751095843697,-460.0,0.00019452,2]
[368291899,1751095843706,-784.51,0.00019452,2]
[368291900,1751095843715,-460.0,0.00019452,2]
[368291901,1751095843724,-460.0,0.00019452,2]
[368291902,1751095843734,-460.0,0.00019452,2]
[368291903,1751095843744,-460.0,0.00019452,2]
[368291904,1751095843754,-460.0,0.00019452,2]
[368291905,1751095843763,-460.0,0.00019452,2]
[368291906,1751095843772,-363.55677075,0.00019452,2]
[368291907,1751095843782,-460.0,0.00019452,2]
[368291908,1751095843791,-460.0,0.00019452,2]
[368291909,1751095843800,-293.33885912,0.00019452,2]
[368291910,1751095843809,-460.0,0.00019452,2]
[368291911,1751095843819,-460.0,0.00019452,2]
[368291912,1751095843828,-460.0,0.00019452,2]
[368291913,1751095843837,-460.0,0.00019452,2]
[368291914,1751095843846,-460.0,0.00019452,2]
[368291915,1751095843856,-460.0,0.00019452,2]
[368291916,1751095843865,-460.0,0.00019452,2]
[368291917,1751095843874,-460.0,0.00019452,2]
[368291918,1751095843883,-460.0,0.00019452,2]
[368291919,1751095843893,-460.0,0.00019452,2]
[368291920,1751095843902,-460.0,0.00019452,2]
[368291921,1751095843911,-460.0,0.00019452,2]
[368291922,1751095843921,-460.0,0.00019452,2]
[368291923,1751095843930,-460.0,0.00019452,2]
[368291924,1751095843939,-460.0,0.00019452,2]
[368291925,1751095843948,-460.0,0.00019452,2]
[368291926,1751095843957,-460.0,0.00019452,2]
[368291927,1751095843966,-460.0,0.00019452,2]
[368291928,1751095843975,-460.0,0.00019452,2]
[368291929,1751095843985,-460.0,0.00019452,2]
[368291930,1751095843994,-460.0,0.00019452,2]
[368291931,1751095844003,-460.0,0.00019452,2]
[368291932,1751095844012,-460.0,0.00019452,2]
[368291933,1751095844022,-460.0,0.00019452,2]
[368291934,1751095844031,-463.68107306,0.00019452,2]
[368291935,1751095844040,-460.0,0.00019452,2]
[368291936,1751095844049,-460.0,0.00019452,2]
[368291937,1751095844058,-797.78,0.00019452,2]
[368291938,1751095844067,-460.0,0.00019452,2]
[368291939,1751095844077,-879.38,0.00019452,2]
[368291940,1751095844087,-162.44540029,0.00019452,2]
[368291941,1751095844096,-460.0,0.00019452,2]
[368291942,1751095844107,-460.0,0.00019452,2]
[368291943,1751095844116,-460.0,0.00019452,2]
[368291944,1751095844126,-828.22,0.00019452,2]
[368291945,1751095844135,-1728.86,0.00019452,2]
[368291946,1751095844145,-460.0,0.00019452,2]
[368291947,1751095844155,-460.0,0.00019452,2]
[368291948,1751095844164,-460.0,0.00019452,2]
[368291949,1751095844176,-460.0,0.00019452,2]
[368291950,1751095844185,-460.0,0.00019452,2]
[368291951,1751095844195,-597.64,0.00019452,2]
[368291952,1751095844204,-460.0,0.00019452,2]
[368291953,1751095844214,-460.0,0.00019452,2]
[368291954,1751095844223,-460.0,0.00019452,2]
[368291955,1751095844233,-460.0,0.00019452,2]
[368291956,1751095844243,-460.0,0.00019452,2]
[368291957,1751095844253,-2614.1,0.00019452,2]
[368291958,1751095844263,-419.75773258,0.00019452,2]
[368291959,1751095844272,-639.64,0.00019452,2]
[368291960,1751095844282,-460.0,0.00019452,2]
[368291961,1751095844291,-3270.51,0.00019452,2]
[368291962,1751095844301,-460.0,0.00019452,2]
[368291963,1751095844310,-460.0,0.00019452,2]
[368291964,1751095844320,-460.0,0.00019452,2]
[368291965,1751095844329,-763.98,0.00019452,2]
[368291966,1751095844339,-837.56,0.00019452,2]
[368291967,1751095844349,-460.0,0.00019452,2]
[368291968,1751095844358,-460.0,0.00019452,2]
[368291969,1751095844368,-460.0,0.00019452,2]
[368291970,1751095844377,-460.0,0.00019452,2]
[368291971,1751095844387,-460.0,0.00019452,2]
[368291972,1751095844396,-460.0,0.00019452,2]
[368291973,1751095844406,-460.0,0.00019452,2]
[368291974,1751095844417,-460.0,0.00019452,2]
[368291975,1751095844426,-460.0,0.00019452,2]
[368291976,1751095844436,-1769.95,0.00019452,2]
[368291977,1751095844445,-500.0,0.00019452,2]
[368291978,1751095844455,-460.0,0.00019452,2]
[368291979,1751095844464,-489.73,0.00019452,2]
[368291980,1751095844473,-621.53,0.00019452,2]
[368291981,1751095844484,-460.0,0.00019452,2]
[368291982,1751095844493,-460.0,0.00019452,2]
[368291983,1751095844503,-460.0,0.00019452,2]
[368291984,1751095844511,-460.0,0.00019452,2]
[368291985,1751095844521,-2448.04,0.00019452,2]
[368291986,1751095844530,-460.0,0.00019452,2]
[368291987,1751095844540,-460.0,0.00019452,2]
[368291988,1751095844549,-610.74,0.00019452,2]
[368291989,1751095844558,-460.0,0.00019452,2]
[368291990,1751095844568,-460.0,0.00019452,2]
[368291991,1751095844577,-1113.91,0.00019452,2]
[368291992,1751095844587,-460.0,0.00019452,2]
[368291993,1751095844596,-460.0,0.00019452,2]
[368291994,1751095844605,-2572.05,0.00019452,2]
[368291995,1751095844615,-551.12,0.00019452,2]
[368291996,1751095844624,-460.0,0.00019452,2]
[368291997,1751095844634,-2857.57,0.00019452,2]
[368291998,1751095844644,-460.0,0.00019452,2]
[368291999,1751095844653,-1213.77,0.00019452,2]
[368292000,1751095844663,-460.0,0.00019452,2]
[368292001,1751095844673,-460.0,0.00019452,2]
[368292002,1751095844682,-460.0,0.00019452,2]
[368292003,1751095844692,-460.0,0.00019452,2]
[368292004,1751095844701,-3407.39,0.00019452,2]
[368292005,1751095844711,-460.0,0.00019452,2]
[368292006,1751095844720,-461.67682965,0.00019452,2]
[368292007,1751095844730,-460.0,0.00019452,2]
[368292008,1751095844739,-460.0,0.00019452,2]
[368292009,1751095844748,-460.0,0.00019452,2]
[368292010,1751095844758,-489.27,0.00019452,2]
[368292011,1751095844767,-460.0,0.00019452,2]
[368292012,1751095844777,-460.0,0.00019452,2]
[368292013,1751095844786,-619.01,0.00019452,2]
[368292014,1751095844795,-538.85,0.00019452,2]
[368292015,1751095844804,-460.0,0.00019452,2]
[368292016,1751095844814,-460.0,0.00019452,2]
[368292017,1751095844824,-460.0,0.00019452,2]
[368292018,1751095844833,-1857.21,0.00019452,2]
[368292019,1751095844842,-2083.66,0.00019452,2]
[368292020,1751095844851,-460.0,0.00019452,2]
[368292021,1751095844861,-460.0,0.00019452,2]
[368292022,1751095844870,-460.0,0.00019452,2]
[368292023,1751095844880,-561.07,0.00019452,2]
[368292024,1751095844889,-460.0,0.00019452,2]
[368292025,1751095844899,-889.36,0.00019452,2]
[368292026,1751095844908,-1671.16,0.00019452,2]
[368292027,1751095844918,-4251.24,0.00019452,2]
[368292028,1751095844927,-191.66459192,0.00019452,2]
[368292029,1751095844936,-460.0,0.00019452,2]
[368292030,1751095844947,-460.0,0.00019452,2]
[368292031,1751095844956,-460.0,0.00019452,2]
[368292032,1751095844966,-494.68,0.00019452,2]
[368292033,1751095844976,-460.0,0.00019452,2]
[368292034,1751095844985,-460.0,0.00019452,2]
[368292035,1751095845114,-2148.79,0.00019452,2]
[368292036,1751095845124,-465.7836555,0.00019452,2]
[368292037,1751095845134,-460.0,0.00019452,2]
[368292038,1751095845144,-460.0,0.00019452,2]
[368292039,1751095845154,-351.62,0.00019452,2]
[368292040,1751095845164,-460.0,0.00019452,2]
[368292041,1751095845176,-555.43,0.00019452,2]
[368292042,1751095845186,-460.0,0.00019452,2]
[368292043,1751095845196,-1792.02,0.00019452,2]
[368292044,1751095845206,-460.0,0.00019452,2]
[368292045,1751095845215,-976.63,0.00019452,2]
[368292046,1751095845225,-460.0,0.00019452,2]
[368292047,1751095845234,-721.4,0.00019452,2]
[368292048,1751095845244,-460.0,0.00019452,2]
[368292049,1751095845254,-460.0,0.00019452,2]
[368292050,1751095845263,-460.0,0.00019452,2]
[368292051,1751095845273,-460.0,0.00019452,2]
[368292052,1751095845282,-591.41,0.00019452,2]
[368292053,1751095845291,-460.0,0.00019452,2]
[368292054,1751095845301,-662.78,0.00019452,2]
[368292055,1751095845311,-460.0,0.00019452,2]
[368292056,1751095845321,-779.4,0.00019452,2]
[368292057,1751095845330,-5559.5,0.00019452,2]
[368292058,1751095845340,-460.0,0.00019452,2]
[368292059,1751095845349,-460.0,0.00019452,2]
[368292060,1751095845359,-460.0,0.00019452,2]
[368292061,1751095845369,-460.0,0.00019452,2]
[368292062,1751095845379,-507.32,0.00019452,2]
[368292063,1751095845388,-460.0,0.00019452,2]
[368292064,1751095845398,-464.7428032,0.00019452,2]
[368292065,1751095845408,-1085.26,0.00019452,2]
[368292066,1751095845418,-2062.99,0.00019452,2]
[368292067,1751095845427,-460.0,0.00019452,2]
[368292068,1751095845436,-460.0,0.00019452,2]
[368292069,1751095845446,-1700.85,0.00019452,2]
[368292070,1751095845455,-383.64375382,0.00019452,2]
[368292071,1751095845465,-460.0,0.00019452,2]
[368292072,1751095845475,-500.0,0.00019654,2]
[368292073,1751095845485,-500.0,0.00019654,2]
[368292074,1751095845496,-500.0,0.0001967,2]
[368292075,1751095845505,-500.0,0.00019693,2]
[368292076,1751095845515,-500.97448561,0.00019693,2]
[368292077,1751095845525,-1844.80252236,0.00019694,2]
[368292078,1751095845534,-501.47527516,0.000197,2]
[368292079,1751095845544,-500.0,0.000197,2]
[368292080,1751095845553,-179.14702428,0.00019721,2]
[368292081,1751095845563,-543.53,0.00019725,2]
[368292082,1751095845572,-543.53,0.00019725,2]
[368292083,1751095845582,-543.53,0.00019725,2]
[368292084,1751095845591,-460.0,0.00019726,2]
[368292085,1751095845601,-518.97221466,0.00019726,2]
[368292086,1751095845611,-460.0,0.00019726,2]
[368292087,1751095845620,-460.0,0.00019726,2]
[368292088,1751095845630,-460.0,0.00019726,2]
[368292089,1751095845639,-460.0,0.00019726,2]
[368292090,1751095845649,-460.0,0.00019726,2]
[368292091,1751095845658,-460.0,0.00019726,2]
[368292092,1751095845668,-460.0,0.00019726,2]
[368292093,1751095845678,-460.0,0.00019726,2]
[368292094,1751095845687,-460.0,0.00019726,2]
[368292095,1751095845696,-346.95057223,0.00019726,2]
[368292096,1751095845706,-460.0,0.00019726,2]
[368292097,1751095845715,-460.0,0.00019726,2]
[368292098,1751095845725,-460.0,0.00019726,2]
[368292099,1751095845735,-460.0,0.00019726,2]
[368292100,1751095845746,-460.0,0.00019726,2]
[368292101,1751095845755,-460.0,0.00019726,2]
[368292102,1751095845765,-519.7,0.00019726,2]
[368292103,1751095845775,-460.0,0.00019726,2]
[368292104,1751095845785,-460.0,0.00019726,2]
[368292105,1751095845794,-562.65,0.00019726,2]
[368292106,1751095845803,-784.51,0.00019726,2]
[368292107,1751095845814,-460.0,0.00019726,2]
[368292108,1751095845824,-460.0,0.00019726,2]
[368292109,1751095845834,-460.0,0.00019726,2]
[368292110,1751095845844,-460.0,0.00019726,2]
[368292111,1751095845853,-460.0,0.00019726,2]
[368292112,1751095845863,-460.0,0.00019726,2]
[368292113,1751095845872,-460.0,0.00019726,2]
[368292114,1751095845882,-460.0,0.00019726,2]
[368292115,1751095845892,-460.0,0.00019726,2]
[368292116,1751095845901,-460.0,0.00019726,2]
[368292117,1751095845910,-504.45535336,0.00019726,2]
[368292118,1751095845920,-320.82,0.00019726,2]
[368292119,1751095845929,-460.0,0.00019726,2]
[368292120,1751095845938,-460.0,0.00019726,2]
[368292121,1751095845947,-315.40342881,0.00019726,2]
[368292122,1751095845956,-460.0,0.00019726,2]
[368292123,1751095845966,-460.0,0.00019726,2]
[368292124,1751095845975,-460.0,0.00019726,2]
[368292125,1751095845985,-797.78,0.00019726,2]
[368292126,1751095845999,-879.38,0.00019726,2]
[368292127,1751095846009,-445.34737111,0.00019726,2]
[368292128,1751095846018,-460.0,0.00019726,2]
[368292129,1751095846027,-828.22,0.00019726,2]
[368292130,1751095846037,-1728.86,0.00019726,2]
[368292131,1751095846047,-460.0,0.00019726,2]
[368292133,1751095846056,-460.0,0.00019726,2]
[368292134,1751095846065,-460.0,0.00019726,2]
[368292135,1751095846075,-597.64,0.00019726,2]
[368292136,1751095846085,-460.0,0.00019726,2]
[368292137,1751095846094,-460.0,0.00019726,2]
[368292138,1751095846104,-460.0,0.00019726,2]
[368292139,1751095846113,-460.0,0.00019726,2]
[368292140,1751095846123,-2614.1,0.00019726,2]
[368292141,1751095846132,-639.64,0.00019726,2]
[368292142,1751095846142,-3270.51,0.00019726,2]
[368292143,1751095846151,-460.0,0.00019726,2]
[368292144,1751095846161,-460.0,0.00019726,2]
[368292145,1751095846173,-548.96853011,0.00019726,2]
[368292146,1751095846183,-763.98,0.00019726,2]
[368292147,1751095846192,-837.56,0.00019726,2]
[368292148,1751095846203,-460.0,0.00019726,2]
[368292149,1751095846212,-460.0,0.00019726,2]
[368292150,1751095846222,-460.0,0.00019726,2]
[368292151,1751095846231,-460.0,0.00019726,2]
[368292152,1751095846243,-262.73755337,0.00019726,2]
[368292153,1751095846460,-460.0,0.00019726,2]
[368292154,1751095846470,-460.0,0.00019726,2]
[368292155,1751095846479,-1769.95,0.00019726,2]
[368292156,1751095846489,-460.0,0.00019726,2]
[368292157,1751095846498,-460.0,0.00019726,2]
[368292158,1751095846507,-489.73,0.00019726,2]
[368292159,1751095846517,-621.53,0.00019726,2]
[368292160,1751095846526,-460.0,0.00019726,2]
[368292161,1751095846536,-460.0,0.00019726,2]
[368292162,1751095846545,-460.0,0.00019726,2]
[368292163,1751095846555,-2448.04,0.00019726,2]
[368292164,1751095846565,-460.0,0.00019726,2]
[368292165,1751095846574,-460.0,0.00019726,2]
[368292166,1751095846584,-610.74,0.00019726,2]
[368292167,1751095846594,-460.0,0.00019726,2]
[368292168,1751095846603,-460.0,0.00019726,2]
[368292169,1751095846613,-1113.91,0.00019726,2]
[368292170,1751095846622,-2572.05,0.00019726,2]
[368292171,1751095846631,-460.0,0.00019726,2]
[368292172,1751095846641,-551.12,0.00019726,2]
[368292173,1751095846651,-460.0,0.00019726,2]
[368292174,1751095846660,-223.12521175,0.00019726,2]
[368292175,1751095846670,-2857.57,0.00019726,2]
[368292176,1751095846679,-460.0,0.00019726,2]
[368292177,1751095846688,-1213.77,0.00019726,2]
[368292178,1751095846698,-189.39,0.00019726,2]
[368292179,1751095846707,-460.0,0.00019726,2]
[368292180,1751095846717,-460.0,0.00019726,2]
[368292181,1751095846726,-460.0,0.00019726,2]
[368292182,1751095846736,-3407.39,0.00019726,2]
[368292183,1751095846745,-460.0,0.00019726,2]
[368292184,1751095846755,-460.0,0.00019726,2]
[368292185,1751095846765,-460.0,0.00019726,2]
[368292186,1751095846775,-460.0,0.00019726,2]
[368292187,1751095846784,-489.27,0.00019726,2]
[368292188,1751095846794,-460.0,0.00019726,2]
[368292189,1751095846804,-619.01,0.00019726,2]
[368292190,1751095846813,-538.85,0.00019726,2]
[368292191,1751095846823,-460.0,0.00019726,2]
[368292192,1751095846832,-460.0,0.00019726,2]
[368292193,1751095846842,-460.0,0.00019726,2]
[368292194,1751095846851,-1857.21,0.00019726,2]
[368292195,1751095846861,-2083.66,0.00019726,2]
[368292196,1751095846871,-460.0,0.00019726,2]
[368292197,1751095846881,-460.0,0.00019726,2]
[368292198,1751095846890,-460.0,0.00019726,2]
[368292199,1751095846900,-561.07,0.00019726,2]
[368292200,1751095846909,-547.7951719,0.00019726,2]
[368292201,1751095846919,-889.36,0.00019726,2]
[368292202,1751095846928,-1671.16,0.00019726,2]
[368292203,1751095846939,-4251.24,0.00019726,2]
[368292204,1751095846949,-460.0,0.00019726,2]
[368292205,1751095846959,-460.0,0.00019726,2]
[368292206,1751095846969,-460.0,0.00019726,2]
[368292207,1751095846978,-494.68,0.00019726,2]
[368292208,1751095846989,-460.0,0.00019726,2]
[368292209,1751095846998,-460.0,0.00019726,2]
[368292210,1751095847008,-2148.79,0.00019726,2]
[368292211,1751095847018,-460.0,0.00019726,2]
[368292212,1751095847027,-460.0,0.00019726,2]
[368292213,1751095847036,-450.45525534,0.00019726,2]
[368292214,1751095847046,-555.43,0.00019726,2]
[368292215,1751095847055,-460.0,0.00019726,2]
[368292216,1751095847065,-1792.02,0.00019726,2]
[368292217,1751095847075,-592.63932121,0.00019726,2]
[368292218,1751095847084,-976.63,0.00019726,2]
[368292219,1751095847094,-460.0,0.00019726,2]
[368292220,1751095847104,-721.4,0.00019726,2]
[368292221,1751095847114,-510.56232506,0.00019726,2]
[368292222,1751095847123,-478.18911306,0.00019726,2]
[368292223,1751095847133,-460.0,0.00019726,2]
[368292224,1751095847142,-591.41,0.00019726,2]
[368292225,1751095847152,-460.0,0.00019726,2]
[368292226,1751095847162,-662.78,0.00019726,2]
[368292227,1751095847175,-332.91678674,0.00019726,2]
[368292228,1751095847185,-779.4,0.00019726,2]
[368292229,1751095847194,-5559.5,0.00019726,2]
[368292230,1751095847204,-460.0,0.00019726,2]
[368292231,1751095847214,-460.0,0.00019726,2]
[368292232,1751095847223,-460.0,0.00019726,2]
[368292233,1751095847233,-460.0,0.00019726,2]
[368292234,1751095847242,-507.32,0.00019726,2]
[368292235,1751095847252,-460.0,0.00019726,2]
[368292236,1751095847261,-1085.26,0.00019726,2]
[368292237,1751095847271,-2062.99,0.00019726,2]
[368292238,1751095847280,-460.0,0.00019726,2]
[368292239,1751095847290,-533.01,0.00019726,2]
[368292240,1751095847299,-1700.85,0.00019726,2]
[368292241,1751095847308,-460.0,0.00019726,2]
[368292242,1751095847318,-261.0,0.0001985,2]
[368292243,1751095847328,-322.43143188,0.00019868,2]
[368292244,1751095847337,-163.0,0.000199,4]
[368292245,1751095847347,-163.0,0.000199,4]
[368292246,1751095847356,-9950.03549682,0.000199,2]
[368292247,1751095847366,-274.50680258,0.00019911,2]
[368292248,1751095847375,-500.0,0.00019931,2]
[368292249,1751095847385,-500.0,0.00019931,2]
[368292250,1751095847395,-509.68531918,0.00019931,2]
[368292251,1751095847405,-487.1023781,0.00019931,2]
[368292252,1751095847415,-503.50287125,0.00019931,2]
[368292253,1751095847424,-504.67766264,0.00019931,2]
[368292254,1751095847433,-543.53,0.00019989,2]
[368292255,1751095847443,-543.53,0.00019989,2]
[368292256,1751095847452,-543.53,0.00019989,2]
[368292257,1751095847461,-543.53,0.00019989,2]
[368292258,1751095847471,-543.53,0.00019999,2]
[368292259,1751095847480,-543.53,0.00019999,2]
[368292260,1751095847489,-543.53,0.00019999,2]
[368292261,1751095847499,-543.53,0.00019999,2]
[368292262,1751095847507,-543.68,0.00019999,2]
[368292263,1751095847518,-562.40738502,0.0002,2]
[368292264,1751095847527,-191.56164127,0.0002,2]
[368292265,1751095847536,-316.01437551,0.0002,2]
[368292266,1751095847546,-481.09073413,0.0002,2]
[368292267,1751095847556,-460.0,0.0002,2]
[368292268,1751095847566,-460.0,0.0002,2]
[368292269,1751095847575,-460.0,0.0002,2]
[368292270,1751095847585,-460.0,0.0002,2]
[368292271,1751095847594,-460.0,0.0002,2]
[368292272,1751095847604,-460.0,0.0002,2]
[368292273,1751095847614,-460.0,0.0002,2]
[368292274,1751095847623,-460.0,0.0002,2]
[368292275,1751095847633,-510.75801331,0.0002,2]
[368292276,1751095847642,-460.0,0.0002,2]
[368292277,1751095847651,-519.7,0.0002,2]
[368292278,1751095847661,-460.0,0.0002,2]
[368292279,1751095847670,-460.0,0.0002,2]
[368292280,1751095847679,-784.51,0.0002,2]
[368292281,1751095847690,-460.0,0.0002,2]
[368292282,1751095847730,-194.20416739,0.0002,2]
[368292283,1751095847739,-460.0,0.0002,2]
[368292284,1751095847748,-6894.0,0.0002,2]
[368292285,1751095847758,-460.0,0.0002,2]
[368292286,1751095847767,-460.0,0.0002,2]
[368292287,1751095847776,-460.0,0.0002,2]
[368292288,1751095847786,-460.0,0.0002,2]
[368292289,1751095847795,-460.0,0.0002,2]
[368292290,1751095847805,-206.09494749,0.0002,2]
[368292291,1751095847814,-460.0,0.0002,2]
[368292292,1751095847823,-550.25,0.0002,2]
[368292293,1751095847833,-170.68688171,0.0002,2]
[368292294,1751095847842,-393.04653521,0.0002,2]
[368292295,1751095847852,-797.78,0.0002,2]
[368292296,1751095847862,-196.29499146,0.0002,2]
[368292297,1751095847871,-879.38,0.0002,2]
[368292298,1751095847880,-460.0,0.0002,2]
[368292299,1751095847889,-828.22,0.0002,2]
[368292300,1751095847899,-1728.86,0.0002,2]
[368292301,1751095847908,-460.0,0.0002,2]
[368292302,1751095847917,-460.0,0.0002,2]
[368292303,1751095847927,-390.0,0.0002,2]
[368292304,1751095847936,-597.64,0.0002,2]
[368292305,1751095847945,-460.0,0.0002,2]
[368292306,1751095847955,-460.0,0.0002,2]
[368292307,1751095847964,-460.0,0.0002,2]
[368292308,1751095847973,-460.0,0.0002,2]
[368292309,1751095847983,-2614.1,0.0002,2]
[368292310,1751095847992,-639.64,0.0002,2]
[368292311,1751095848001,-3270.51,0.0002,2]
[368292312,1751095848010,-460.0,0.0002,2]
[368292313,1751095848019,-460.0,0.0002,2]
[368292314,1751095848028,-763.98,0.0002,2]
[368292315,1751095848037,-837.56,0.0002,2]
[368292316,1751095848047,-460.0,0.0002,2]
[368292317,1751095848056,-460.0,0.0002,2]
[368292318,1751095848066,-460.0,0.0002,2]
[368292319,1751095848075,-460.0,0.0002,2]
[368292320,1751095848085,-460.0,0.0002,2]
[368292321,1751095848095,-460.0,0.0002,2]
[368292322,1751095848104,-1769.95,0.0002,2]
[368292323,1751095848115,-460.0,0.0002,2]
[368292324,1751095848124,-489.73,0.0002,2]
[368292325,1751095848134,-621.53,0.0002,2]
[368292326,1751095848144,-460.0,0.0002,2]
[368292327,1751095848153,-460.0,0.0002,2]
[368292328,1751095848162,-460.0,0.0002,2]
[368292329,1751095848177,-2448.04,0.0002,2]
[368292330,1751095848186,-460.0,0.0002,2]
[368292331,1751095848195,-460.0,0.0002,2]
[368292332,1751095848205,-610.74,0.0002,2]
[368292333,1751095848215,-460.0,0.0002,2]
[368292334,1751095848224,-460.0,0.0002,2]
[368292335,1751095848234,-1113.91,0.0002,2]
[368292336,1751095848245,-2572.05,0.0002,2]
[368292337,1751095848256,-500.0,0.0002,2]
[368292338,1751095848266,-551.12,0.0002,2]
[368292339,1751095848275,-460.0,0.0002,2]
[368292340,1751095848284,-2857.57,0.0002,2]
[368292341,1751095848294,-460.0,0.0002,2]
[368292342,1751095848303,-1213.77,0.0002,2]
[368292343,1751095848313,-460.0,0.0002,2]
[368292344,1751095848322,-460.0,0.0002,2]
[368292345,1751095848333,-3407.39,0.0002,2]
[368292346,1751095848342,-460.0,0.0002,2]
[368292347,1751095848351,-460.0,0.0002,2]
[368292348,1751095848361,-655.26651717,0.0002,2]
[368292349,1751095848371,-460.0,0.0002,2]
[368292350,1751095848379,-460.0,0.0002,2]
[368292351,1751095848389,-489.27,0.0002,2]
[368292352,1751095848398,-460.0,0.0002,2]
[368292353,1751095848408,-619.01,0.0002,2]
[368292354,1751095848417,-538.85,0.0002,2]
[368292355,1751095848427,-460.0,0.0002,2]
[368292356,1751095848436,-421.8078106,0.0002,2]
[368292357,1751095848445,-460.0,0.0002,2]
[368292358,1751095848455,-1857.21,0.0002,2]
[368292359,1751095848464,-18803.49168301,0.0002,2]
[368292360,1751095848473,-2083.66,0.0002,2]
[368292361,1751095848483,-460.0,0.0002,2]
[368292362,1751095848493,-460.0,0.0002,2]
[368292363,1751095848502,-460.0,0.0002,2]
[368292364,1751095848512,-561.07,0.0002,2]
[368292365,1751095848522,-889.36,0.0002,2]
[368292366,1751095848532,-1671.16,0.0002,2]
[368292367,1751095848541,-4251.24,0.0002,2]
[368292368,1751095848550,-460.0,0.0002,2]
[368292369,1751095848560,-460.0,0.0002,2]
[368292370,1751095848570,-460.0,0.0002,2]
[368292371,1751095848579,-494.68,0.0002,2]
[368292372,1751095848589,-460.0,0.0002,2]
[368292373,1751095848598,-460.0,0.0002,2]
[368292374,1751095848608,-2148.79,0.0002,2]
[368292375,1751095848619,-460.0,0.0002,2]
[368292376,1751095848628,-507.43720755,0.0002,2]
[368292377,1751095848637,-555.43,0.0002,2]
[368292378,1751095848647,-448.43126466,0.0002,2]
[368292379,1751095848657,-1792.02,0.0002,2]
[368292380,1751095848667,-976.63,0.0002,2]
[368292381,1751095848676,-460.0,0.0002,2]
[368292382,1751095848686,-721.4,0.0002,2]
[368292383,1751095848696,-460.0,0.0002,2]
[368292384,1751095848705,-591.41,0.0002,2]
[368292385,1751095848715,-460.0,0.0002,2]
[368292386,1751095848724,-662.78,0.0002,2]
[368292387,1751095848735,-779.4,0.0002,2]
[368292388,1751095848744,-5559.5,0.0002,2]
[368292389,1751095848754,-460.0,0.0002,2]
[368292390,1751095848764,-460.0,0.0002,2]